[Event "Titled Tuesday Blitz November 29 Early 2022"]
[White "Matveeva, Olga"]
[Black "Mohammed, Zozek Salah Mohammed"]
[WhiteFideId "24107018"]
[BlackFideId "4803361"]
[WhiteElo "2055"]
[BlackElo "2199"]
[Result "1/2-1/2"]
[Round "05"]
[TimeControl "180+1"]
[Date "2022.11.30"]
[WhiteClock "0:00:08"]
[BlackClock "0:00:35"]

1. d4 {[%clk 0:03:00]}  d5 {[%clk 0:02:58]} 2. c4 {[%clk 0:03:01]}  c6 {[%clk 0:02:58]} 3. Nf3 {[%clk 0:03:01]}  Nf6 {[%clk 0:02:58]} 4. e3 {[%clk 0:03:02]}  e6 {[%clk 0:02:59]} 5. Nc3 {[%clk 0:03:01]}  Nbd7 {[%clk 0:02:59]} 6. Bd3 {[%clk 0:02:56]}  dxc4 {[%clk 0:02:58]} 7. Bxc4 {[%clk 0:02:57]}  b5 {[%clk 0:02:58]} 8. Bd3 {[%clk 0:02:54]}  a6 {[%clk 0:02:59]} 9. O-O {[%clk 0:02:52]}  c5 {[%clk 0:02:59]} 10. Qe2 {[%clk 0:02:50]}  Bb7 {[%clk 0:02:54]} 11. Rd1 {[%clk 0:02:33]}  cxd4 {[%clk 0:02:40]} 12. exd4 {[%clk 0:02:34]}  Be7 {[%clk 0:02:33]} 13. Bg5 {[%clk 0:02:30]}  O-O {[%clk 0:02:33]} 14. Ne5 {[%clk 0:02:24]}  h6 {[%clk 0:02:29]} 15. Bh4 {[%clk 0:02:18]}  Nxe5 {[%clk 0:02:19]} 16. dxe5 {[%clk 0:02:17]}  Nd5 {[%clk 0:02:20]} 17. Bxe7 {[%clk 0:01:55]}  Qxe7 {[%clk 0:02:19]} 18. Ne4 {[%clk 0:01:49]}  Nf4 {[%clk 0:02:13]} 19. Qe3 {[%clk 0:01:48]}  Nxd3 {[%clk 0:02:12]} 20. Rxd3 {[%clk 0:01:48]}  Bxe4 {[%clk 0:02:10]} 21. Qxe4 {[%clk 0:01:48]}  Rfd8 {[%clk 0:02:09]} 22. Rad1 {[%clk 0:01:46]}  Rac8 {[%clk 0:02:09]} 23. h3 {[%clk 0:01:39]}  Rxd3 {[%clk 0:02:05]} 24. Qxd3 {[%clk 0:01:39]}  Qc7 {[%clk 0:01:58]} 25. Qd6 {[%clk 0:01:26]}  Qxd6 {[%clk 0:01:58]} 26. Rxd6 {[%clk 0:01:27]}  Rc2 {[%clk 0:01:57]} 27. Rxa6 {[%clk 0:01:25]}  Rxb2 {[%clk 0:01:57]} 28. Ra7 {[%clk 0:01:17]}  g5 {[%clk 0:01:55]} 29. g3 {[%clk 0:01:15]}  Re2 {[%clk 0:01:51]} 30. f4 {[%clk 0:01:09]}  gxf4 {[%clk 0:01:51]} 31. gxf4 {[%clk 0:01:10]}  Re4 {[%clk 0:01:42]} 32. Rb7 {[%clk 0:01:08]}  b4 {[%clk 0:01:42]} 33. f5 {[%clk 0:01:05]}  exf5 {[%clk 0:01:41]} 34. Kf2 {[%clk 0:01:04]}  Rc4 {[%clk 0:01:25]} 35. Kf3 {[%clk 0:01:02]}  Re4 {[%clk 0:01:24]} 36. Rb6 {[%clk 0:01:00]}  Kg7 {[%clk 0:01:23]} 37. Rb7 {[%clk 0:00:59]}  Kg6 {[%clk 0:01:22]} 38. Rb6+ {[%clk 0:00:57]}  Kg5 {[%clk 0:01:21]} 39. Rb7 {[%clk 0:00:55]}  Kg6 {[%clk 0:01:20]} 40. Rb6+ {[%clk 0:00:55]}  Kg7 {[%clk 0:01:19]} 41. Rb7 {[%clk 0:00:55]}  Rxe5 {[%clk 0:01:19]} 42. Rxb4 {[%clk 0:00:54]}  Ra5 {[%clk 0:01:19]} 43. a4 {[%clk 0:00:53]}  Kg6 {[%clk 0:01:17]} 44. Kf4 {[%clk 0:00:50]}  Rc5 {[%clk 0:01:17]} 45. Rb6+ {[%clk 0:00:48]}  f6 {[%clk 0:01:15]} 46. Ra6 {[%clk 0:00:47]}  Rc4+ {[%clk 0:01:15]} 47. Kf3 {[%clk 0:00:47]}  Kg5 {[%clk 0:01:15]} 48. Ra8 {[%clk 0:00:47]}  Rc3+ {[%clk 0:01:15]} 49. Kg2 {[%clk 0:00:47]}  Kf4 {[%clk 0:01:06]} 50. Rf8 {[%clk 0:00:40]}  Rc2+ {[%clk 0:01:06]} 51. Kg1 {[%clk 0:00:37]}  Kg5 {[%clk 0:01:04]} 52. Rg8+ {[%clk 0:00:36]}  Kh5 {[%clk 0:00:59]} 53. a5 {[%clk 0:00:35]}  Ra2 {[%clk 0:00:58]} 54. Ra8 {[%clk 0:00:33]}  Kh4 {[%clk 0:00:58]} 55. a6 {[%clk 0:00:25]}  Kg3 {[%clk 0:00:58]} 56. Kf1 {[%clk 0:00:24]}  Kxh3 {[%clk 0:00:55]} 57. a7 {[%clk 0:00:23]}  h5 {[%clk 0:00:48]} 58. Rh8 {[%clk 0:00:17]}  Rxa7 {[%clk 0:00:47]} 59. Rxh5+ {[%clk 0:00:16]}  Kg4 {[%clk 0:00:47]} 60. Rh8 {[%clk 0:00:15]}  Ra2 {[%clk 0:00:47]} 61. Rb8 {[%clk 0:00:14]}  f4 {[%clk 0:00:47]} 62. Rb3 {[%clk 0:00:14]}  f5 {[%clk 0:00:46]} 63. Rc3 {[%clk 0:00:14]}  f3 {[%clk 0:00:46]} 64. Rc8 {[%clk 0:00:12]}  Kg3 {[%clk 0:00:45]} 65. Rg8+ {[%clk 0:00:12]}  Kf4 {[%clk 0:00:45]} 66. Rb8 {[%clk 0:00:12]}  Rc2 {[%clk 0:00:41]} 67. Rb7 {[%clk 0:00:11]}  Ra2 {[%clk 0:00:39]} 68. Rb8 {[%clk 0:00:12]}  f2 {[%clk 0:00:39]} 69. Rb4+ {[%clk 0:00:10]}  Kg3 {[%clk 0:00:38]} 70. Rb3+ {[%clk 0:00:10]}  Kg4 {[%clk 0:00:38]} 71. Rb4+ {[%clk 0:00:10]}  f4 {[%clk 0:00:38]} 72. Rc4 {[%clk 0:00:08]}  Kg3 {[%clk 0:00:37]} 73. Rc3+ {[%clk 0:00:08]}  Kg4 {[%clk 0:00:37]} 74. Rc4 {[%clk 0:00:08]}  Kf5 {[%clk 0:00:37]} 75. Rb4 {[%clk 0:00:08]}  f3 {[%clk 0:00:36]} 76. Rb5+ {[%clk 0:00:07]}  Ke4 {[%clk 0:00:36]} 77. Rb4+ {[%clk 0:00:07]}  Kd3 {[%clk 0:00:35]} 78. Rb3+ {[%clk 0:00:07]}  Kd4 {[%clk 0:00:36]} 79. Rb4+ {[%clk 0:00:07]}  Ke3 {[%clk 0:00:35]} 80. Rb3+ {[%clk 0:00:08]}  Kf4 {[%clk 0:00:36]} 81. Rb4+ {[%clk 0:00:08]}  Kg3 {[%clk 0:00:36]} 82. Rg4+ {[%clk 0:00:08]}  Kh3 {[%clk 0:00:35]} 83. Rh4+ {[%clk 0:00:08]}  Kxh4 {[%clk 0:00:35]} 1/2-1/2


[Site "https://www.chess.com"]

[Event "Titled Tuesday Blitz November 29 Early 2022"]
[White "Mgeladze, Tamaz"]
[Black "Janaszak, Dawid"]
[WhiteFideId "13601202"]
[BlackFideId "1119206"]
[WhiteElo "2288"]
[BlackElo "2226"]
[Result "0-1"]
[Round "05"]
[TimeControl "180+1"]
[Date "2022.11.30"]
[WhiteClock "0:00:20"]
[BlackClock "0:00:45"]

1. c4 {[%clk 0:02:58]}  Nf6 {[%clk 0:02:57]} 2. Nc3 {[%clk 0:02:57]}  g6 {[%clk 0:02:54]} 3. g3 {[%clk 0:02:57]}  Bg7 {[%clk 0:02:54]} 4. Bg2 {[%clk 0:02:57]}  O-O {[%clk 0:02:54]} 5. Nf3 {[%clk 0:02:58]}  c6 {[%clk 0:02:54]} 6. d3 {[%clk 0:02:58]}  d5 {[%clk 0:02:54]} 7. Qb3 {[%clk 0:02:59]}  d4 {[%clk 0:02:45]} 8. Na4 {[%clk 0:02:59]}  Qa5+ {[%clk 0:02:25]} 9. Bd2 {[%clk 0:02:58]}  Qh5 {[%clk 0:02:26]} 10. h3 {[%clk 0:02:58]}  b5 {[%clk 0:02:20]} 11. cxb5 {[%clk 0:02:50]}  cxb5 {[%clk 0:02:21]} 12. Ng5 {[%clk 0:02:47]}  bxa4 {[%clk 0:02:16]} 13. Qxa4 {[%clk 0:02:48]}  Bd7 {[%clk 0:02:13]} 14. Qa3 {[%clk 0:02:35]}  Bc6 {[%clk 0:02:03]} 15. Bxc6 {[%clk 0:01:56]}  Nxc6 {[%clk 0:02:02]} 16. Rc1 {[%clk 0:01:40]}  Rac8 {[%clk 0:01:55]} 17. Rc5 {[%clk 0:01:33]}  Nd7 {[%clk 0:01:31]} 18. g4 {[%clk 0:01:26]}  Qh4 {[%clk 0:01:24]} 19. Rxc6 {[%clk 0:00:47]}  Rxc6 {[%clk 0:01:21]} 20. Qxe7 {[%clk 0:00:48]}  Ne5 {[%clk 0:00:51]} 21. Bf4 {[%clk 0:00:29]}  Bf6 {[%clk 0:00:47]} 22. Qb7 {[%clk 0:00:20]}  Bxg5 {[%clk 0:00:45]} 0-1


[Site "https://www.chess.com"]

[Event "Titled Tuesday Blitz November 29 Early 2022"]
[White "Mihailidis, Anastasios"]
[Black "Nugumanov, Bakhtiyar"]
[WhiteFideId "4205588"]
[BlackFideId "13701797"]
[WhiteElo "2312"]
[BlackElo "2287"]
[Result "1-0"]
[Round "05"]
[TimeControl "180+1"]
[Date "2022.11.30"]
[WhiteClock "0:00:06"]
[BlackClock "0:00:17"]

1. e4 {[%clk 0:02:47]}  d6 {[%clk 0:02:59]} 2. d4 {[%clk 0:02:46]}  Nf6 {[%clk 0:03:00]} 3. Nc3 {[%clk 0:02:46]}  g6 {[%clk 0:03:00]} 4. Bg5 {[%clk 0:02:43]}  Bg7 {[%clk 0:02:59]} 5. Qd2 {[%clk 0:02:44]}  h6 {[%clk 0:03:00]} 6. Be3 {[%clk 0:02:42]}  Ng4 {[%clk 0:02:58]} 7. Bf4 {[%clk 0:02:40]}  e5 {[%clk 0:02:54]} 8. dxe5 {[%clk 0:02:38]}  Nxe5 {[%clk 0:02:29]} 9. f3 {[%clk 0:02:32]}  Be6 {[%clk 0:02:22]} 10. Bb5+ {[%clk 0:02:28]}  Nbd7 {[%clk 0:02:21]} 11. Bxd7+ {[%clk 0:02:24]}  Qxd7 {[%clk 0:02:20]} 12. Bxe5 {[%clk 0:02:17]}  Bxe5 {[%clk 0:02:19]} 13. Nge2 {[%clk 0:02:17]}  g5 {[%clk 0:01:59]} 14. Nc1 {[%clk 0:02:03]}  O-O-O {[%clk 0:01:48]} 15. Nd3 {[%clk 0:02:02]}  Bg7 {[%clk 0:01:43]} 16. O-O-O {[%clk 0:01:58]}  f5 {[%clk 0:01:43]} 17. exf5 {[%clk 0:01:57]}  Bxf5 {[%clk 0:01:44]} 18. Rhe1 {[%clk 0:01:56]}  Rhe8 {[%clk 0:01:43]} 19. Nb4 {[%clk 0:01:41]}  Be5 {[%clk 0:01:35]} 20. g3 {[%clk 0:01:38]}  a6 {[%clk 0:00:57]} 21. Nbd5 {[%clk 0:01:28]}  Qc6 {[%clk 0:00:56]} 22. f4 {[%clk 0:01:21]}  gxf4 {[%clk 0:00:56]} 23. gxf4 {[%clk 0:01:21]}  Bxc3 {[%clk 0:00:50]} 24. Nxc3 {[%clk 0:00:56]}  Rg8 {[%clk 0:00:47]} 25. Rg1 {[%clk 0:00:52]}  Rxg1 {[%clk 0:00:44]} 26. Rxg1 {[%clk 0:00:51]}  d5 {[%clk 0:00:44]} 27. Ne2 {[%clk 0:00:45]}  d4 {[%clk 0:00:42]} 28. Ng3 {[%clk 0:00:30]}  Be6 {[%clk 0:00:34]} 29. a3 {[%clk 0:00:20]}  d3 {[%clk 0:00:34]} 30. Qc3 {[%clk 0:00:17]}  d2+ {[%clk 0:00:23]} 31. Kd1 {[%clk 0:00:12]}  Bg4+ {[%clk 0:00:21]} 32. Ne2 {[%clk 0:00:12]}  Bxe2+ {[%clk 0:00:22]} 33. Kxe2 {[%clk 0:00:12]}  d1=Q+ {[%clk 0:00:18]} 34. Rxd1 {[%clk 0:00:11]}  Qe4+ {[%clk 0:00:19]} 35. Kf2 {[%clk 0:00:06]}  Rxd1 {[%clk 0:00:19]} 36. Qh8+ {[%clk 0:00:06]}  Rd8 {[%clk 0:00:20]} 37. Qxh6 {[%clk 0:00:06]}  Qxc2+ {[%clk 0:00:20]} 38. Kg3 {[%clk 0:00:07]}  Qxb2 {[%clk 0:00:20]} 39. Qe6+ {[%clk 0:00:07]}  Kb8 {[%clk 0:00:20]} 40. Qe7 {[%clk 0:00:07]}  Rg8+ {[%clk 0:00:18]} 41. Kf3 {[%clk 0:00:08]}  Qxa3+ {[%clk 0:00:18]} 42. Qxa3 {[%clk 0:00:07]}  b5 {[%clk 0:00:17]} 43. Qxa6 {[%clk 0:00:05]}  c6 {[%clk 0:00:16]} 44. Qxc6 {[%clk 0:00:04]}  b4 {[%clk 0:00:17]} 45. Qb5+ {[%clk 0:00:04]}  Ka7 {[%clk 0:00:18]} 46. Qa4+ {[%clk 0:00:04]}  Kb6 {[%clk 0:00:17]} 47. Qxb4+ {[%clk 0:00:05]}  Ka6 {[%clk 0:00:18]} 48. Qc4+ {[%clk 0:00:05]}  Ka7 {[%clk 0:00:17]} 49. Qxg8 {[%clk 0:00:06]}  Kb7 {[%clk 0:00:16]} 50. Qc4 {[%clk 0:00:06]}  Kb6 {[%clk 0:00:17]} 51. Ke4 {[%clk 0:00:06]} 1-0


[Site "https://www.chess.com"]

[Event "Titled Tuesday Blitz November 29 Early 2022"]
[White "Miszler, Levente"]
[Black "Orzech, Dominik"]
[WhiteFideId "763276"]
[BlackFideId "1115065"]
[WhiteElo "2176"]
[BlackElo "2272"]
[Result "1-0"]
[Round "05"]
[TimeControl "180+1"]
[Date "2022.11.30"]
[WhiteClock "0:01:08"]
[BlackClock "0:01:34"]

1. Nf3 {[%clk 0:02:08]}  Nf6 {[%clk 0:02:53]} 2. c4 {[%clk 0:02:08]}  g6 {[%clk 0:02:52]} 3. g3 {[%clk 0:02:09]}  Bg7 {[%clk 0:02:52]} 4. Bg2 {[%clk 0:02:10]}  O-O {[%clk 0:02:52]} 5. O-O {[%clk 0:02:11]}  c5 {[%clk 0:02:50]} 6. Nc3 {[%clk 0:02:11]}  d5 {[%clk 0:02:50]} 7. cxd5 {[%clk 0:02:11]}  Nxd5 {[%clk 0:02:51]} 8. Nxd5 {[%clk 0:02:11]}  Qxd5 {[%clk 0:02:52]} 9. d3 {[%clk 0:02:12]}  Nc6 {[%clk 0:02:51]} 10. Be3 {[%clk 0:02:12]}  Qh5 {[%clk 0:02:50]} 11. Rc1 {[%clk 0:02:11]}  b6 {[%clk 0:02:50]} 12. d4 {[%clk 0:02:08]}  Rd8 {[%clk 0:02:49]} 13. Qa4 {[%clk 0:02:08]}  Bd7 {[%clk 0:02:48]} 14. dxc5 {[%clk 0:01:59]}  Bxb2 {[%clk 0:02:44]} 15. Rb1 {[%clk 0:01:53]}  Bf6 {[%clk 0:02:44]} 16. Qa6 {[%clk 0:01:41]}  Bf5 {[%clk 0:02:28]} 17. Rbd1 {[%clk 0:01:39]}  Rxd1 {[%clk 0:02:12]} 18. Rxd1 {[%clk 0:01:40]}  Bc2 {[%clk 0:02:00]} 19. Rc1 {[%clk 0:01:39]}  Rd8 {[%clk 0:01:43]} 20. cxb6 {[%clk 0:01:27]}  axb6 {[%clk 0:01:41]} 21. Qxb6 {[%clk 0:01:28]}  Qd5 {[%clk 0:01:34]} 22. Ne1 {[%clk 0:01:08]} 1-0


[Site "https://www.chess.com"]

[Event "Titled Tuesday Blitz November 29 Early 2022"]
[White "Molina, Roberto Junio Brito"]
[Black "Bethke, Richard"]
[WhiteFideId "2109450"]
[BlackFideId "12959243"]
[WhiteElo "2388"]
[BlackElo "2369"]
[Result "1/2-1/2"]
[Round "05"]
[TimeControl "180+1"]
[Date "2022.11.30"]
[WhiteClock "0:00:07"]
[BlackClock "0:00:03"]

1. d4 {[%clk 0:03:00]}  Nf6 {[%clk 0:02:58]} 2. c4 {[%clk 0:03:00]}  e6 {[%clk 0:02:58]} 3. Nf3 {[%clk 0:03:00]}  d5 {[%clk 0:02:59]} 4. Nc3 {[%clk 0:02:59]}  Be7 {[%clk 0:02:59]} 5. cxd5 {[%clk 0:02:57]}  exd5 {[%clk 0:02:59]} 6. Bg5 {[%clk 0:02:57]}  c6 {[%clk 0:02:59]} 7. Qc2 {[%clk 0:02:56]}  Nbd7 {[%clk 0:02:54]} 8. e3 {[%clk 0:02:56]}  h6 {[%clk 0:02:53]} 9. Bh4 {[%clk 0:02:56]}  Nh5 {[%clk 0:02:54]} 10. Bxe7 {[%clk 0:02:55]}  Qxe7 {[%clk 0:02:55]} 11. Be2 {[%clk 0:02:53]}  O-O {[%clk 0:02:52]} 12. O-O {[%clk 0:02:51]}  Re8 {[%clk 0:02:47]} 13. h3 {[%clk 0:02:50]}  Nhf6 {[%clk 0:02:39]} 14. Bd3 {[%clk 0:02:48]}  Ne4 {[%clk 0:02:37]} 15. Rae1 {[%clk 0:02:48]}  Nxc3 {[%clk 0:02:32]} 16. bxc3 {[%clk 0:02:43]}  Nf6 {[%clk 0:02:28]} 17. Nd2 {[%clk 0:02:42]}  Be6 {[%clk 0:02:25]} 18. f3 {[%clk 0:02:40]}  c5 {[%clk 0:02:22]} 19. Qb2 {[%clk 0:02:36]}  Rac8 {[%clk 0:02:20]} 20. Rf2 {[%clk 0:02:34]}  Qc7 {[%clk 0:02:15]} 21. Bb5 {[%clk 0:02:30]}  Bd7 {[%clk 0:02:14]} 22. Bxd7 {[%clk 0:02:26]}  Nxd7 {[%clk 0:02:15]} 23. Rfe2 {[%clk 0:02:23]}  cxd4 {[%clk 0:02:13]} 24. cxd4 {[%clk 0:02:22]}  Nb6 {[%clk 0:02:13]} 25. Qb5 {[%clk 0:02:14]}  Qc3 {[%clk 0:02:07]} 26. Nb3 {[%clk 0:02:08]}  Qc4 {[%clk 0:01:57]} 27. Qxc4 {[%clk 0:02:04]}  Nxc4 {[%clk 0:01:54]} 28. e4 {[%clk 0:02:00]}  dxe4 {[%clk 0:01:27]} 29. fxe4 {[%clk 0:02:01]}  a5 {[%clk 0:01:22]} 30. a4 {[%clk 0:01:50]}  b6 {[%clk 0:01:20]} 31. e5 {[%clk 0:01:48]}  Re7 {[%clk 0:00:38]} 32. d5 {[%clk 0:01:09]}  Rce8 {[%clk 0:00:35]} 33. e6 {[%clk 0:01:09]}  fxe6 {[%clk 0:00:34]} 34. dxe6 {[%clk 0:01:09]}  Nd6 {[%clk 0:00:28]} 35. Nd4 {[%clk 0:01:08]}  Rc7 {[%clk 0:00:27]} 36. Rb2 {[%clk 0:00:56]}  Rc4 {[%clk 0:00:23]} 37. Nf3 {[%clk 0:00:50]}  Rb4 {[%clk 0:00:18]} 38. Rxb4 {[%clk 0:00:45]}  axb4 {[%clk 0:00:19]} 39. Nd4 {[%clk 0:00:45]}  Nb7 {[%clk 0:00:15]} 40. Rb1 {[%clk 0:00:43]}  Nc5 {[%clk 0:00:15]} 41. Rxb4 {[%clk 0:00:43]}  Nxe6 {[%clk 0:00:16]} 42. Nf5 {[%clk 0:00:38]}  Nc5 {[%clk 0:00:15]} 43. Rxb6 {[%clk 0:00:35]}  Nxa4 {[%clk 0:00:15]} 44. Rg6 {[%clk 0:00:35]}  Kf7 {[%clk 0:00:14]} 45. Rxg7+ {[%clk 0:00:34]}  Kf6 {[%clk 0:00:14]} 46. g4 {[%clk 0:00:35]}  h5 {[%clk 0:00:12]} 47. Ra7 {[%clk 0:00:29]}  Nc3 {[%clk 0:00:12]} 48. Ra6+ {[%clk 0:00:26]}  Kg5 {[%clk 0:00:12]} 49. Ng7 {[%clk 0:00:26]}  Re1+ {[%clk 0:00:11]} 50. Kf2 {[%clk 0:00:26]}  Re2+ {[%clk 0:00:12]} 51. Kf3 {[%clk 0:00:26]}  hxg4+ {[%clk 0:00:11]} 52. hxg4 {[%clk 0:00:27]}  Rd2 {[%clk 0:00:10]} 53. Ne6+ {[%clk 0:00:24]}  Kh4 {[%clk 0:00:09]} 54. Nf4 {[%clk 0:00:23]}  Rd1 {[%clk 0:00:04]} 55. Rh6+ {[%clk 0:00:16]}  Kg5 {[%clk 0:00:04]} 56. Rh5+ {[%clk 0:00:17]}  Kf6 {[%clk 0:00:05]} 57. Rf5+ {[%clk 0:00:18]}  Kg7 {[%clk 0:00:05]} 58. g5 {[%clk 0:00:18]}  Rf1+ {[%clk 0:00:04]} 59. Kg4 {[%clk 0:00:18]}  Rg1+ {[%clk 0:00:05]} 60. Kh3 {[%clk 0:00:18]}  Rh1+ {[%clk 0:00:05]} 61. Kg2 {[%clk 0:00:18]}  Re1 {[%clk 0:00:06]} 62. Kf3 {[%clk 0:00:18]}  Rf1+ {[%clk 0:00:06]} 63. Ke3 {[%clk 0:00:18]}  Rh1 {[%clk 0:00:03]} 64. Rf6 {[%clk 0:00:16]}  Nd1+ {[%clk 0:00:03]} 65. Ke2 {[%clk 0:00:16]}  Nc3+ {[%clk 0:00:03]} 66. Kf3 {[%clk 0:00:17]}  Rf1+ {[%clk 0:00:03]} 67. Kg4 {[%clk 0:00:17]}  Rg1+ {[%clk 0:00:03]} 68. Kf5 {[%clk 0:00:18]}  Rf1 {[%clk 0:00:03]} 69. Kg4 {[%clk 0:00:18]}  Rg1+ {[%clk 0:00:03]} 70. Kh3 {[%clk 0:00:18]}  Rh1+ {[%clk 0:00:02]} 71. Kg2 {[%clk 0:00:18]}  Ra1 {[%clk 0:00:03]} 72. Ne6+ {[%clk 0:00:18]}  Kg8 {[%clk 0:00:03]} 73. Rf3 {[%clk 0:00:18]}  Ra2+ {[%clk 0:00:03]} 74. Kh3 {[%clk 0:00:18]}  Ne4 {[%clk 0:00:03]} 75. Rf8+ {[%clk 0:00:18]}  Kh7 {[%clk 0:00:03]} 76. Rf4 {[%clk 0:00:19]}  Nd6 {[%clk 0:00:03]} 77. Kg4 {[%clk 0:00:18]}  Rg2+ {[%clk 0:00:01]} 78. Kh5 {[%clk 0:00:18]}  Rh2+ {[%clk 0:00:02]} 79. Kg4 {[%clk 0:00:18]}  Rg2+ {[%clk 0:00:02]} 80. Kh4 {[%clk 0:00:19]}  Rg1 {[%clk 0:00:03]} 81. Nd4 {[%clk 0:00:19]}  Rh1+ {[%clk 0:00:03]} 82. Kg4 {[%clk 0:00:18]}  Rg1+ {[%clk 0:00:04]} 83. Kh4 {[%clk 0:00:18]}  Rh1+ {[%clk 0:00:04]} 84. Kg3 {[%clk 0:00:11]}  Rg1+ {[%clk 0:00:04]} 85. Kf3 {[%clk 0:00:12]}  Rxg5 {[%clk 0:00:05]} 86. Rf6 {[%clk 0:00:12]}  Rg6 {[%clk 0:00:05]} 87. Rf8 {[%clk 0:00:12]}  Rg7 {[%clk 0:00:05]} 88. Rd8 {[%clk 0:00:11]}  Rf7+ {[%clk 0:00:06]} 89. Kg4 {[%clk 0:00:11]}  Ne4 {[%clk 0:00:06]} 90. Ne6 {[%clk 0:00:09]}  Nf6+ {[%clk 0:00:05]} 91. Kh4 {[%clk 0:00:09]}  Ne4 {[%clk 0:00:05]} 92. Rd4 {[%clk 0:00:08]}  Nf6 {[%clk 0:00:03]} 93. Ng5+ {[%clk 0:00:08]}  Kg6 {[%clk 0:00:03]} 94. Nxf7 {[%clk 0:00:09]}  Kxf7 {[%clk 0:00:04]} 95. Kg5 {[%clk 0:00:09]}  Ke6 {[%clk 0:00:05]} 96. Ra4 {[%clk 0:00:09]}  Nd7 {[%clk 0:00:04]} 97. Kf4 {[%clk 0:00:08]}  Kd6 {[%clk 0:00:05]} 98. Rd4+ {[%clk 0:00:08]}  Ke6 {[%clk 0:00:05]} 99. Ke4 {[%clk 0:00:09]}  Nf6+ {[%clk 0:00:05]} 100. Ke3 {[%clk 0:00:09]}  Nd5+ {[%clk 0:00:06]} 101. Kf3 {[%clk 0:00:10]}  Nf6 {[%clk 0:00:06]} 102. Ra4 {[%clk 0:00:10]}  Ke5 {[%clk 0:00:06]} 103. Ra5+ {[%clk 0:00:11]}  Nd5 {[%clk 0:00:06]} 104. Ra4 {[%clk 0:00:09]}  Nf6 {[%clk 0:00:06]} 105. Rb4 {[%clk 0:00:09]}  Nd5 {[%clk 0:00:06]} 106. Rh4 {[%clk 0:00:10]}  Nf6 {[%clk 0:00:05]} 107. Ke3 {[%clk 0:00:10]}  Nd5+ {[%clk 0:00:05]} 108. Kd2 {[%clk 0:00:10]}  Nf4 {[%clk 0:00:05]} 109. Rg4 {[%clk 0:00:09]}  Nd5 {[%clk 0:00:05]} 110. Kd3 {[%clk 0:00:10]}  Nf4+ {[%clk 0:00:05]} 111. Kc4 {[%clk 0:00:10]}  Ne6 {[%clk 0:00:05]} 112. Rg1 {[%clk 0:00:10]}  Nf4 {[%clk 0:00:03]} 113. Rf1 {[%clk 0:00:10]}  Ke4 {[%clk 0:00:03]} 114. Re1+ {[%clk 0:00:10]}  Kf5 {[%clk 0:00:04]} 115. Re8 {[%clk 0:00:10]}  Ne6 {[%clk 0:00:03]} 116. Kd3 {[%clk 0:00:10]}  Nf4+ {[%clk 0:00:04]} 117. Ke3 {[%clk 0:00:10]}  Ne6 {[%clk 0:00:03]} 118. Re7 {[%clk 0:00:09]}  Ke5 {[%clk 0:00:03]} 119. Rh7 {[%clk 0:00:09]}  Kf5 {[%clk 0:00:03]} 120. Rh5+ {[%clk 0:00:09]}  Kf6 {[%clk 0:00:02]} 121. Ra5 {[%clk 0:00:10]}  Ke7 {[%clk 0:00:03]} 122. Ke4 {[%clk 0:00:10]}  Kd6 {[%clk 0:00:03]} 123. Rd5+ {[%clk 0:00:09]}  Ke7 {[%clk 0:00:03]} 124. Ke5 {[%clk 0:00:10]}  Nf8 {[%clk 0:00:03]} 125. Ra5 {[%clk 0:00:10]}  Nd7+ {[%clk 0:00:04]} 126. Kf5 {[%clk 0:00:10]}  Kd6 {[%clk 0:00:04]} 127. Ke4 {[%clk 0:00:09]}  Nc5+ {[%clk 0:00:04]} 128. Ke3 {[%clk 0:00:10]}  Kd5 {[%clk 0:00:04]} 129. Rb5 {[%clk 0:00:09]}  Kc4 {[%clk 0:00:04]} 130. Rb8 {[%clk 0:00:10]}  Kd5 {[%clk 0:00:04]} 131. Rh8 {[%clk 0:00:09]}  Kd6 {[%clk 0:00:02]} 132. Kd4 {[%clk 0:00:08]}  Ne6+ {[%clk 0:00:02]} 133. Kc4 {[%clk 0:00:08]}  Ke5 {[%clk 0:00:02]} 134. Re8 {[%clk 0:00:07]}  Kd6 {[%clk 0:00:03]} 135. Ra8 {[%clk 0:00:07]}  Ke5 {[%clk 0:00:03]} 136. Ra5+ {[%clk 0:00:06]}  Kd6 {[%clk 0:00:03]} 137. Rd5+ {[%clk 0:00:07]}  Ke7 {[%clk 0:00:03]} 138. Re5 {[%clk 0:00:07]}  Kd6 {[%clk 0:00:04]} 139. Re1 {[%clk 0:00:08]}  Nc7 {[%clk 0:00:03]} 140. Rd1+ {[%clk 0:00:07]}  Kc6 {[%clk 0:00:03]} 141. Rd2 {[%clk 0:00:07]}  Ne6 {[%clk 0:00:03]} 142. Re2 {[%clk 0:00:08]}  Kd6 {[%clk 0:00:03]} 143. Re1 {[%clk 0:00:08]}  Nc7 {[%clk 0:00:03]} 144. Rh1 {[%clk 0:00:07]}  Ne6 {[%clk 0:00:03]} 1/2-1/2


[Site "https://www.chess.com"]